fUSD/lending_fUSD_20250607
["ID","MTS","AMOUNT","RATE_DAILY","PERIOD"]
[364914705,1749297692208,-151.0,0.00018973,2]
[364914706,1749297692236,-425.355225,0.00018973,7]
[364914707,1749297692262,-263.744879,0.00018973,2]
[364914708,1749297692286,-263.744879,0.00018973,2]
[364914709,1749297692313,-179.340194,0.00018973,2]
[364914710,1749297692340,-354.436695,0.0001898,2]
[364914711,1749297692366,-354.436695,0.0001898,2]
[364914712,1749297692394,-165.510456,0.0001898,2]
[364914713,1749297692422,-402.907868,0.0001898,2]
[364914714,1749297692446,-402.907868,0.0001898,2]
[364914715,1749297692471,-151.0,0.0001898,2]
[364914716,1749297692495,-151.0,0.0001898,2]
[364914717,1749297692519,-1642.080816,0.0001898,2]
[364914718,1749297692542,-1642.080816,0.0001898,2]
[364914719,1749297692567,-151.0,0.0001898,2]
[364914720,1749297692590,-173.567389,0.0001898,2]
[364914721,1749297692614,-173.567389,0.0001898,2]
[364914722,1749297692638,-151.0,0.0001898,2]
[364914723,1749297692662,-1621.503584,0.0001898,2]
[364914724,1749297692686,-1621.503584,0.0001898,2]
[364914725,1749297692710,-336.770364,0.0001898,2]
[364914726,1749297692733,-336.770364,0.0001898,2]
[364914727,1749297692757,-200.168376,0.0001898,2]
[364914728,1749297692782,-951.154587,0.0001898,2]
[364914729,1749297692807,-200.168376,0.0001898,2]
[364914730,1749297692831,-951.154587,0.0001898,2]
[364914731,1749297692856,-151.0,0.0001898,2]
[364914732,1749297692881,-196.779148,0.0001898,2]
[364914733,1749297692905,-196.779148,0.0001898,2]
[364914734,1749297692929,-151.0,0.0001898,2]
[364914735,1749297692953,-151.0,0.0001898,2]
[364914736,1749297692977,-151.0,0.0001898,2]
[364914737,1749297693000,-500.0,0.0001898,2]
[364914738,1749297693025,-500.0,0.0001898,2]
[364914739,1749297693049,-589.93214716,0.0001898,2]
[364914740,1749297693073,-500.0,0.0001898,2]
[364914741,1749297693098,-1967.0,0.0001898,2]
[364914742,1749297693123,-500.0,0.0001898,2]
[364914743,1749297693148,-2212.0,0.0001898,2]
[364914744,1749297693174,-500.0,0.0001898,2]
[364914745,1749297693198,-300.0,0.00018989,2]
[364914746,1749297693222,-300.0,0.00018995,2]
[364914747,1749297693250,-200.0,0.00018996,2]
[364914748,1749297693275,-200.0,0.00018996,2]
[364914749,1749297693301,-538.65,0.00018999,2]
[364914750,1749297693328,-171740.18337312,0.00019,2]
[364914751,1749297693354,-151.0,0.00019,2]
[364914752,1749297693379,-151.0,0.00019,2]
[364914753,1749297693405,-151.0,0.00019,2]
[364914754,1749297693428,-151.0,0.00019,2]
[364914755,1749297693453,-151.0,0.00019,2]
[364914756,1749297693478,-151.0,0.00019,2]
[364914757,1749297693502,-151.0,0.00019,2]
[364914758,1749297693527,-151.0,0.00019,2]
[364914759,1749297693551,-151.0,0.00019,2]
[364914760,1749297693578,-151.0,0.00019,2]
[364914761,1749297693602,-223.160854,0.00019,2]
[364914762,1749297693628,-1439.761915,0.00019,2]
[364914763,1749297693654,-1439.761915,0.00019,2]
[364914764,1749297693680,-151.0,0.00019,2]
[364914765,1749297693706,-1584.036109,0.00019,2]
[364914766,1749297693731,-1584.036109,0.00019,2]
[364914767,1749297693756,-378.083416,0.00019,2]
[364914768,1749297693782,-151.0,0.00019,2]
[364914769,1749297693964,-378.083416,0.00019,2]
[364914770,1749297693992,-205.49714,0.00019,2]
[364914771,1749297694018,-326.309248,0.00019,2]
[364914772,1749297694044,-205.49714,0.00019,2]
[364914773,1749297694070,-326.309248,0.00019,2]
[364914774,1749297694096,-151.0,0.00019,2]
[364914775,1749297694122,-151.0,0.00019,2]
[364914776,1749297694148,-151.0,0.00019,2]
[364914777,1749297694176,-161.295383,0.00019,2]
[364914778,1749297694203,-161.295383,0.00019,2]
[364914779,1749297694231,-667.336566,0.00019,2]
[364914780,1749297694264,-151.0,0.00019,2]
[364914781,1749297694291,-667.336566,0.00019,2]
[364914782,1749297694319,-250.0,0.00019,2]
[364914783,1749297694345,-151.0,0.00019,2]
[364914784,1749297694371,-151.0,0.00019,2]
[364914785,1749297694397,-1047.039356,0.00019,2]
[364914786,1749297694422,-151.0,0.00019,2]
[364914787,1749297694448,-151.0,0.00019,2]
[364914788,1749297694473,-151.0,0.00019,2]
[364914789,1749297694498,-151.0,0.00019,2]
[364914790,1749297694524,-222.13349,0.00019,2]
[364914791,1749297694549,-161.779004,0.00019,2]
[364914792,1749297694576,-222.13349,0.00019,2]
[364914793,1749297694601,-354.436695,0.00019,2]
[364914794,1749297694627,-354.436695,0.00019,2]
[364914795,1749297694652,-151.0,0.00019,2]
[364914796,1749297694676,-307.314938,0.00019,2]
[364914797,1749297694700,-307.314938,0.00019,2]
[364914798,1749297694724,-192.062464,0.00019,2]
[364914799,1749297694749,-402.907868,0.00019,2]
[364914800,1749297694775,-402.907868,0.00019,2]
[364914801,1749297694801,-151.0,0.00019,2]
[364914802,1749297694826,-151.0,0.00019,2]
[364914803,1749297694851,-151.0,0.00019,2]
[364914804,1749297694875,-271.080303,0.00019,2]
[364914805,1749297694901,-1642.080816,0.00019,2]
[364914806,1749297694930,-1642.080816,0.00019,2]
[364914807,1749297694957,-276.515978,0.00019,2]
[364914808,1749297694982,-276.515978,0.00019,2]
[364914809,1749297695006,-151.0,0.00019,2]
[364914810,1749297695034,-151.0,0.00019,2]
[364914811,1749297695060,-855.267624,0.00019,2]
[364914812,1749297695085,-327.769811,0.00019,2]
[364914813,1749297695109,-855.267624,0.00019,2]
[364914814,1749297695134,-327.769811,0.00019,2]
[364914815,1749297695159,-188.135992,0.00019,2]
[364914816,1749297695184,-151.0,0.00019,2]
[364914817,1749297695209,-529.0081,0.00019,2]
[364914818,1749297695235,-188.135992,0.00019,2]
[364914819,1749297695260,-529.0081,0.00019,2]
[364914820,1749297695284,-151.0,0.00019,2]
[364914821,1749297695310,-151.0,0.00019,2]
[364914822,1749297695336,-824.094525,0.00019,2]
[364914823,1749297695361,-824.094525,0.00019,2]
[364914824,1749297695386,-151.0,0.00019,2]
[364914825,1749297695412,-151.0,0.00019,2]
[364914826,1749297695437,-10000.0,0.00019,2]
[364914827,1749297695462,-10000.0,0.00019,2]
[364914828,1749297695487,-151.0,0.00019,2]
[364914829,1749297695511,-173.567389,0.00019,2]
[364914830,1749297695535,-173.567389,0.00019,2]
[364914831,1749297695560,-151.0,0.00019,2]
[364914832,1749297695585,-1621.503584,0.00019,2]
[364914833,1749297695610,-1621.503584,0.00019,2]
[364914834,1749297695635,-336.770364,0.00019,2]
[364914835,1749297695659,-336.770364,0.00019,2]
[364914836,1749297695684,-181.881296,0.00019,2]
[364914837,1749297695710,-181.881296,0.00019,2]
[364914838,1749297695736,-464.541073,0.00019,2]
[364914839,1749297695765,-464.541073,0.00019,2]
[364914840,1749297695791,-200.168376,0.00019,2]
[364914841,1749297695817,-951.154587,0.00019,2]
[364914842,1749297695842,-200.168376,0.00019,2]
[364914843,1749297695868,-951.154587,0.00019,2]
[364914844,1749297695894,-151.0,0.00019,2]
[364914845,1749297695919,-196.779148,0.00019,2]
[364914846,1749297695945,-196.779148,0.00019,2]
[364914847,1749297695972,-341.013717,0.00019,2]
[364914848,1749297695998,-341.013717,0.00019,2]
[364914849,1749297696024,-151.0,0.00019,2]
[364914850,1749297696049,-151.0,0.00019,2]
[364914851,1749297696075,-151.0,0.00019,2]
[364914852,1749297696100,-151.0,0.00019,2]
[364914853,1749297696124,-151.0,0.00019,2]
[364914854,1749297696148,-151.0,0.00019,2]
[364914855,1749297696174,-151.0,0.00019,2]
[364914856,1749297696199,-1470.829381,0.00019,2]
[364914857,1749297696223,-155.208437,0.00019,2]
[364914858,1749297696253,-1470.829381,0.00019,2]
[364914859,1749297696279,-151.0,0.00019,2]
[364914860,1749297696303,-263.744879,0.00019,2]
[364914861,1749297696332,-263.744879,0.00019,2]
[364914862,1749297696357,-200.0,0.00019005,2]
[364914863,1749297696382,-200.0,0.00019005,2]
[364914864,1749297696407,-1000.0,0.00019006,2]
[364914865,1749297696434,-150.0,0.00019007,2]
[364914866,1749297696460,-500.0,0.00019008,2]
[364914867,1749297696485,-500.0,0.00019008,2]
[364914868,1749297696509,-500.0,0.00019008,2]
[364914869,1749297696535,-1967.0,0.00019008,2]
[364914870,1749297696562,-500.0,0.00019008,2]
[364914871,1749297696586,-2212.0,0.00019008,2]
[364914872,1749297696612,-500.0,0.00019008,2]
[364914873,1749297696638,-150.0,0.00019019,2]
[364914874,1749297696664,-263.744879,0.00019035,2]
[364914875,1749297696690,-263.744879,0.00019035,2]
[364914876,1749297696714,-500.0,0.00019035,2]
[364914877,1749297696740,-500.0,0.00019035,2]
[364914878,1749297696764,-500.0,0.00019035,2]
[364914879,1749297696791,-1967.0,0.00019035,2]
[364914880,1749297696816,-479.09263784,0.00019035,2]
[364914881,1749297696842,-2212.0,0.00019035,2]
[364914882,1749297696867,-500.0,0.00019035,2]
[364914883,1749297696892,-151.0,0.00019036,2]
[364914884,1749297696917,-150.0,0.0001905,2]
[364914885,1749297696944,-150.0,0.0001905,2]
[364914886,1749297697125,-341.013717,0.00019062,2]
[364914887,1749297697151,-341.013717,0.00019062,2]
[364914888,1749297697177,-151.0,0.00019062,2]
[364914889,1749297697200,-151.0,0.00019062,2]
[364914890,1749297697224,-151.0,0.00019062,2]
[364914891,1749297697251,-213.09230434,0.00019063,2]
[364914892,1749297697275,-500.0,0.00019063,2]
[364914893,1749297697299,-500.0,0.00019063,2]
[364914894,1749297697326,-1967.0,0.00019063,2]
[364914895,1749297697352,-2212.0,0.00019063,2]
[364914896,1749297697377,-500.0,0.00019063,2]
[364914897,1749297697402,-1000.0,0.00019081,2]
[364914898,1749297697427,-151.0,0.00019081,2]
[364914899,1749297697451,-500.0,0.0001909,2]
[364914900,1749297697477,-500.0,0.0001909,2]
[364914901,1749297697502,-1967.0,0.0001909,2]
[364914902,1749297697526,-2212.0,0.0001909,2]
[364914903,1749297697551,-500.0,0.0001909,2]
[364914904,1749297697577,-151.0,0.0001909,2]
[364914905,1749297697604,-180.27294,0.0001909,2]
[364914906,1749297697630,-855.267624,0.0001909,2]
[364914907,1749297697656,-855.267624,0.0001909,2]
[364914908,1749297697681,-188.135992,0.0001909,2]
[364914909,1749297697706,-151.0,0.0001909,2]
[364914910,1749297697732,-529.0081,0.0001909,2]
[364914911,1749297697757,-188.135987,0.0001909,2]
[364914912,1749297697783,-529.0081,0.0001909,2]
[364914913,1749297697810,-151.0,0.0001909,2]
[364914914,1749297697837,-824.094525,0.0001909,2]
[364914915,1749297697863,-824.094533,0.0001909,2]
[364914916,1749297697887,-151.0,0.0001909,2]
[364914917,1749297697912,-151.0,0.0001909,2]
[364914918,1749297697937,-10000.0,0.0001909,2]
[364914919,1749297697965,-10000.0,0.0001909,2]
[364914920,1749297697990,-151.0,0.0001909,2]
[364914921,1749297698015,-173.567389,0.0001909,2]
[364914922,1749297698040,-173.567389,0.0001909,2]
[364914923,1749297698066,-181.881296,0.0001909,2]
[364914924,1749297698091,-181.881291,0.0001909,2]
[364914925,1749297698117,-464.541073,0.0001909,2]
[364914926,1749297698142,-464.541077,0.0001909,2]
[364914927,1749297698167,-1470.829381,0.0001909,2]
[364914928,1749297698193,-1470.829373,0.0001909,2]
[364914929,1749297698218,-151.0,0.00019096,2]
[364914930,1749297698245,-1000.0,0.00019113,2]
[364914931,1749297698273,-150.0,0.00019115,2]
[364914932,1749297698300,-151.0,0.00019117,2]
[364914933,1749297698328,-1642.080816,0.00019117,2]
[364914934,1749297698353,-276.515978,0.00019117,2]
[364914935,1749297698380,-1642.080816,0.00019117,2]
[364914936,1749297698406,-276.515978,0.00019117,2]
[364914937,1749297698433,-1000.0,0.00019117,2]
[364914938,1749297698459,-327.769811,0.00019117,2]
[364914939,1749297698484,-327.769811,0.00019117,2]
[364914940,1749297698510,-151.0,0.00019117,2]
[364914941,1749297698536,-151.0,0.00019117,2]
[364914942,1749297698561,-1621.503584,0.00019117,2]
[364914943,1749297698587,-1621.503584,0.00019117,2]
[364914944,1749297698611,-336.770364,0.00019117,2]
[364914945,1749297698637,-336.770364,0.00019117,2]
[364914946,1749297698662,-200.168376,0.00019117,2]
[364914947,1749297698687,-951.154587,0.00019117,2]
[364914948,1749297698712,-200.168376,0.00019117,2]
[364914949,1749297698737,-951.154587,0.00019117,2]
[364914950,1749297698762,-151.0,0.00019117,2]
[364914951,1749297698789,-196.779148,0.00019117,2]
[364914952,1749297698814,-196.779148,0.00019117,2]
[364914953,1749297698841,-151.0,0.00019117,2]
[364914954,1749297698868,-151.0,0.00019117,2]
[364914955,1749297698893,-151.0,0.00019117,2]
[364914956,1749297698918,-329.8693377,0.00019117,2]
[364914957,1749297698943,-500.0,0.00019117,2]
[364914958,1749297698968,-1967.0,0.00019117,2]
[364914959,1749297698993,-2212.0,0.00019117,2]
[364914960,1749297699019,-500.0,0.00019117,2]
[364914961,1749297699044,-300.0,0.00019125,2]
[364914962,1749297699069,-196.712187,0.00019136,2]
[364914963,1749297699095,-225.218056,0.00019136,2]
[364914964,1749297699120,-225.218056,0.00019136,2]
[364914965,1749297699146,-151.0,0.00019136,2]
[364914966,1749297699170,-212.591451,0.00019136,2]
[364914967,1749297699194,-151.0,0.00019136,2]
[364914968,1749297699219,-151.0,0.00019136,2]
[364914969,1749297699249,-364.623123,0.00019136,2]
[364914970,1749297699275,-364.623123,0.00019136,2]
[364914971,1749297699300,-155.562117,0.00019136,2]
[364914972,1749297699326,-155.562117,0.00019136,2]
[364914973,1749297699351,-171.882811,0.00019136,2]
[364914974,1749297699377,-171.882811,0.00019136,2]
[364914975,1749297699403,-961.409907,0.00019136,2]
[364914976,1749297699430,-961.409907,0.00019136,2]
[364914977,1749297699456,-162.693074,0.00019136,2]
[364914978,1749297699482,-162.693074,0.00019136,2]
[364914979,1749297699507,-151.0,0.00019136,2]
[364914980,1749297699534,-151.0,0.00019136,2]
[364914981,1749297699560,-151.797343,0.00019136,2]
[364914982,1749297699584,-572.91785,0.00019136,2]
[364914983,1749297699608,-572.91785,0.00019136,2]
[364914984,1749297699632,-151.0,0.00019136,2]
[364914985,1749297699657,-1439.761915,0.00019136,2]
[364914986,1749297699683,-1439.761915,0.00019136,2]
[364914987,1749297699707,-207.089752,0.00019136,2]
[364914988,1749297699732,-326.309248,0.00019136,2]
[364914989,1749297699759,-326.309248,0.00019136,2]
[364914990,1749297699784,-151.0,0.00019136,2]
[364914991,1749297699808,-151.0,0.00019136,2]
[364914992,1749297699831,-151.0,0.00019136,2]
[364914993,1749297699856,-667.336566,0.00019136,2]
[364914994,1749297699880,-151.0,0.00019136,2]
[364914995,1749297699905,-667.336566,0.00019136,2]
[364914996,1749297699932,-151.0,0.00019136,2]
[364914997,1749297699959,-151.0,0.00019136,2]
[364914998,1749297699984,-1047.039356,0.00019136,2]
[364914999,1749297700009,-1047.039356,0.00019136,2]
[364915000,1749297700033,-151.0,0.00019136,2]
[364915001,1749297700057,-151.0,0.00019136,2]
[364915002,1749297700247,-222.13349,0.00019136,2]
[364915003,1749297700273,-222.13349,0.00019136,2]
[364915004,1749297700301,-354.436695,0.00019136,2]
[364915005,1749297700327,-354.436695,0.00019136,2]
[364915006,1749297700353,-151.0,0.00019136,2]
[364915007,1749297700378,-307.314938,0.00019136,2]
[364915008,1749297700402,-307.314938,0.00019136,2]
[364915009,1749297700428,-402.907868,0.00019136,2]
[364915010,1749297700453,-402.907868,0.00019136,2]
[364915011,1749297700481,-151.0,0.00019136,2]
[364915012,1749297700506,-151.0,0.00019136,2]
[364915013,1749297700534,-341.013717,0.00019136,2]
[364915014,1749297700562,-341.013717,0.00019136,2]
[364915015,1749297700586,-151.0,0.00019136,2]
[364915016,1749297700611,-151.0,0.00019136,2]
[364915017,1749297700636,-151.0,0.00019136,2]
[364915018,1749297700660,-151.0,0.00019136,2]
[364915019,1749297700685,-263.744879,0.00019136,2]
[364915020,1749297700711,-263.744879,0.00019136,2]
[364915021,1749297700737,-150.0,0.00019144,2]
[364915022,1749297700762,-500.0,0.00019145,2]
[364915023,1749297700788,-1967.0,0.00019145,2]
[364915024,1749297700813,-2212.0,0.00019145,2]
[364915025,1749297700838,-465.38208764,0.00019145,2]
[364915026,1749297700863,-151.0,0.00019145,2]
[364915027,1749297700890,-151.0,0.00019145,2]
[364915028,1749297700917,-1584.036109,0.00019145,2]
[364915029,1749297700943,-1584.036109,0.00019145,2]
[364915030,1749297700968,-378.083416,0.00019145,2]
[364915031,1749297700993,-378.083416,0.00019145,2]
[364915032,1749297701017,-205.49714,0.00019145,2]
[364915033,1749297701042,-205.49714,0.00019145,2]
[364915034,1749297701066,-151.0,0.00019145,2]
[364915035,1749297701090,-151.0,0.00019145,2]
[364915036,1749297701115,-529.0081,0.00019145,2]
[364915037,1749297701140,-529.008099,0.00019145,2]
[364915038,1749297701164,-151.0,0.00019145,2]
[364915039,1749297701191,-151.0,0.00019145,2]
[364915040,1749297701216,-251.21448081,0.00019165,2]
[364915041,1749297701245,-150.0,0.00019168,2]
[364915042,1749297701269,-151.0,0.00019172,2]
[364915043,1749297701296,-276.515978,0.00019172,2]
[364915044,1749297701322,-276.51598,0.00019172,2]
[364915045,1749297701348,-327.769811,0.00019172,2]
[364915046,1749297701373,-327.769813,0.00019172,2]
[364915047,1749297701400,-151.0,0.00019172,2]
[364915048,1749297701426,-500.0,0.00019172,2]
[364915049,1749297701451,-1967.0,0.00019172,2]
[364915050,1749297701475,-2212.0,0.00019172,2]
[364915051,1749297701502,-150.0,0.00019175,2]
[364915052,1749297701526,-151.0,0.00019178,2]
[364915053,1749297701551,-153.155426,0.00019178,2]
[364915054,1749297701576,-151.0,0.00019178,2]
[364915055,1749297701602,-162.798157,0.00019178,2]
[364915056,1749297701626,-151.0,0.00019178,2]
[364915057,1749297701651,-161.295383,0.00019178,2]
[364915058,1749297701676,-161.295383,0.00019178,2]
[364915059,1749297701701,-151.0,0.00019178,2]
[364915060,1749297701726,-151.0,0.00019178,2]
[364915061,1749297701752,-1642.080816,0.00019178,2]
[364915062,1749297701779,-1642.080818,0.00019178,2]
[364915063,1749297701804,-167.89061,0.00019178,2]
[364915064,1749297701830,-173.567389,0.00019178,2]
[364915065,1749297701855,-173.567389,0.00019178,2]
[364915066,1749297701881,-258.80205317,0.00019178,2]
[364915067,1749297701906,-500.0,0.00019178,2]
[364915068,1749297701932,-500.0,0.00019178,2]
[364915069,1749297701958,-500.0,0.00019178,2]
[364915070,1749297701983,-500.0,0.00019178,2]
[364915071,1749297702008,-500.0,0.00019178,2]
[364915072,1749297702033,-500.0,0.00019178,2]
[364915073,1749297702057,-498.96064553,0.00019178,2]
[364915074,1749297702083,-500.0,0.00019178,2]
[364915075,1749297702107,-500.0,0.00019178,2]
[364915076,1749297702132,-500.0,0.00019178,2]
[364915077,1749297702157,-500.0,0.00019178,2]
[364915078,1749297702181,-500.0,0.00019178,2]
[364915079,1749297702207,-500.0,0.00019178,2]
[364915080,1749297702232,-500.0,0.00019178,2]
[364915081,1749297702261,-500.0,0.00019178,2]
[364915082,1749297702289,-500.0,0.00019178,2]
[364915083,1749297702316,-350.0,0.00019178,2]
[364915084,1749297702343,-500.0,0.00019178,2]
[364915085,1749297702369,-500.0,0.00019178,2]
[364915086,1749297702397,-500.0,0.00019178,2]
[364915087,1749297702423,-500.0,0.00019178,2]
[364915088,1749297702448,-151.0,0.00019178,2]
[364915089,1749297702472,-151.0,0.00019178,2]
[364915090,1749297702499,-151.0,0.00019178,2]
[364915091,1749297702526,-151.0,0.00019178,2]
[364915092,1749297702550,-151.0,0.00019178,2]
[364915093,1749297702574,-300.3,0.00019178,2]
[364915094,1749297702598,-151.0,0.00019179,2]
[364915095,1749297702622,-151.0,0.00019179,2]
[364915096,1749297702646,-166.66,0.0001918,2]
[364915097,1749297702672,-150.0,0.0001918,2]
[364915098,1749297702696,-200.0,0.00019186,2]
[364915099,1749297702721,-200.0,0.00019186,2]
[364915100,1749297702745,-150.0,0.00019193,2]
[364915101,1749297702769,-200.0,0.00019195,2]
[364915102,1749297702799,-194.89262063,0.00019195,2]
[364915103,1749297702825,-151.0,0.00019199,2]
[364915104,1749297702850,-1621.503584,0.00019199,2]
[364915105,1749297702876,-1621.503584,0.00019199,2]
[364915106,1749297702901,-336.770364,0.00019199,2]
[364915107,1749297702925,-336.770364,0.00019199,2]
[364915108,1749297702950,-200.168376,0.00019199,2]
[364915109,1749297702978,-951.154587,0.00019199,2]
[364915110,1749297703002,-200.168376,0.00019199,2]
[364915111,1749297703026,-951.154587,0.00019199,2]
[364915112,1749297703050,-151.0,0.00019199,2]
[364915113,1749297703074,-196.779148,0.00019199,2]
[364915114,1749297703097,-196.779148,0.00019199,2]
[364915115,1749297703123,-151.0,0.00019199,2]
[364915116,1749297703147,-151.0,0.00019199,2]
[364915117,1749297703171,-164.872847,0.00019199,2]
[364915118,1749297703351,-326.03327308,0.000192,2]
[364915119,1749297703378,-1967.0,0.000192,2]
[364915120,1749297703404,-2212.0,0.000192,2]
[364915121,1749297703432,-150.0,0.00019202,2]
[364915122,1749297703457,-354.436695,0.00019208,2]
[364915123,1749297703482,-354.436695,0.00019208,2]
[364915124,1749297703507,-402.907868,0.00019208,2]
[364915125,1749297703534,-402.907868,0.00019208,2]
[364915126,1749297703559,-151.0,0.00019208,2]
[364915127,1749297703586,-150.0,0.00019218,2]
[364915128,1749297703612,-150.0,0.00019219,2]
[364915129,1749297703638,-205.0,0.00019223,3]
[364915130,1749297703664,-1967.0,0.00019227,2]
[364915131,1749297703690,-2212.0,0.00019227,2]
[364915132,1749297703719,-150.0,0.0001923,2]
[364915133,1749297703745,-1000.0,0.00019243,2]
[364915134,1749297703772,-150.0,0.00019248,2]
[364915135,1749297703800,-150.0,0.00019249,2]
[364915136,1749297703827,-150.0,0.00019249,2]
[364915137,1749297703853,-200.0,0.00019253,2]
[364915138,1749297703879,-1967.0,0.00019254,2]
[364915139,1749297703904,-2212.0,0.00019254,2]
[364915140,1749297703932,-150.0,0.00019256,2]
[364915141,1749297703959,-150.0,0.00019274,2]
[364915142,1749297703985,-1967.0,0.00019282,2]
[364915143,1749297704014,-2212.0,0.00019282,2]
[364915144,1749297704042,-150.0,0.00019293,2]
[364915145,1749297704071,-151.0,0.00019301,2]
[364915146,1749297704098,-218.499101,0.00019301,2]
[364915147,1749297704126,-150.0,0.00019307,2]
[364915148,1749297704153,-263.744879,0.00019309,2]
[364915149,1749297704179,-263.744882,0.00019309,2]
[364915150,1749297704205,-1967.0,0.00019309,2]
[364915151,1749297704231,-2212.0,0.00019309,2]
[364915152,1749297704261,-150.0,0.0001931,2]
[364915153,1749297704288,-150.0,0.0001931,2]
[364915154,1749297704317,-150.0,0.00019311,2]
[364915155,1749297704345,-304.0,0.00019314,2]
[364915156,1749297704372,-150.0,0.00019324,2]
[364915157,1749297704401,-1967.0,0.00019337,2]
[364915158,1749297704429,-2212.0,0.00019337,2]
[364915159,1749297704457,-150.0,0.00019343,2]
[364915160,1749297704485,-18339.5739291,0.00019351,2]
[364915161,1749297704512,-1967.0,0.00019364,2]
[364915162,1749297704538,-2212.0,0.00019364,2]
[364915163,1749297704563,-151.0,0.00019364,2]
[364915164,1749297704600,-151.0,0.00019364,2]
[364915165,1749297704632,-151.0,0.00019364,2]
[364915166,1749297704660,-151.0,0.00019364,2]
[364915167,1749297704689,-274.637008,0.00019364,2]
[364915168,1749297704716,-222.13349,0.00019364,2]
[364915169,1749297704743,-222.13349,0.00019364,2]
[364915170,1749297704769,-307.314938,0.00019364,2]
[364915171,1749297704797,-307.314938,0.00019364,2]
[364915172,1749297704824,-341.013717,0.00019364,2]
[364915173,1749297704850,-341.013726,0.00019364,2]
[364915174,1749297704876,-151.0,0.00019364,2]
[364915175,1749297704903,-151.0,0.00019364,2]
[364915176,1749297704929,-151.0,0.00019364,2]
[364915177,1749297704956,-295.37822589,0.00019365,2]
[364915178,1749297704982,-218.42161716,0.00019369,2]
[364915179,1749297705007,-1000.0,0.00019371,2]
[364915180,1749297705033,-1000.0,0.00019374,2]
[364915181,1749297705058,-200.0,0.00019378,2]
[364915182,1749297705084,-200.0,0.00019378,2]
[364915183,1749297705109,-250.0,0.00019381,2]
[364915184,1749297705139,-200.0,0.00019387,2]
[364915185,1749297705166,-36918.87485656,0.0001939,2]
[364915186,1749297705193,-150.0,0.0001939,2]
[364915187,1749297705221,-151.0,0.00019391,2]
[364915188,1749297705248,-1967.0,0.00019391,2]
[364915189,1749297705275,-2212.0,0.00019391,2]
[364915190,1749297705303,-667.336566,0.00019396,2]
[364915191,1749297705331,-667.336566,0.00019396,2]
[364915192,1749297705358,-1047.039356,0.00019396,2]
[364915193,1749297705384,-1047.039356,0.00019396,2]
[364915194,1749297705413,-150.0,0.00019397,2]
[364915195,1749297705440,-354.436695,0.00019399,2]
[364915196,1749297705469,-354.4367,0.00019399,2]
[364915197,1749297705496,-402.907868,0.00019399,2]
[364915198,1749297705524,-402.907864,0.00019399,2]
[364915199,1749297705551,-151.0,0.00019399,2]
[364915200,1749297705579,-1005.82602038,0.000194,2]
[364915201,1749297705605,-43965.07917517,0.000194,2]
[364915202,1749297705633,-176.665353,0.000194,2]
[364915203,1749297705660,-961.409907,0.000194,2]
[364915204,1749297705693,-961.409907,0.000194,2]